bitfinex-derivatives/quotes_ETHF0:USTF0_20260316
["timestamp","ask_amount","ask_price","bid_price","bid_amount"]
[1773671999574,0.22104,2261.6,2260.2,0.0040345]
[1773671999775,11.75200418,2261.3,2259.9,8.238]
[1773672000082,11.75200418,2261.1,2259.3,12.61380851]
[1773672000282,11.75200418,2261.1,2259.5,12.61380851]
[1773672000575,11.75200418,2260.7,2259.4,8.241]
[1773672000777,11.75200418,2260.7,2259.4,8.24475982]
[1773672000975,11.75200418,2260.7,2259.5,12.61380851]
[1773672001378,11.75200418,2260.7,2259.6,20.85680851]
[1773672001581,11.75200418,2260.7,2259.7,12.61380851]
[1773672001779,11.75200418,2260.7,2259.8,8.243]
[1773672001975,11.75200418,2260.7,2259.9,8.243]
[1773672002277,11.75200418,2260.7,2260.0,8.244]
[1773672002483,8.11024693,2261.6,2260.1,12.61380851]
[1773672002484,11.75200418,2261.5,2260.1,12.61380851]
[1773672003179,12.19559332,2261.5,2260.2,8.247]
[1773672003381,11.75200418,2261.2,2260.1,12.61380851]
[1773672003676,11.10283702,2261.2,2260.5,12.61380851]
[1773672003876,11.75200418,2261.5,2260.5,12.61380851]
[1773672004276,11.75200418,2261.5,2260.0,12.61380851]
[1773672004472,11.75200418,2261.5,2260.4,8.249]
[1773672004676,11.75200418,2261.5,2260.5,8.25]
[1773672005079,11.75200418,2261.5,2260.5,20.86380851]
[1773672005274,0.00324693,2261.6,2259.7,8.84915]
[1773672005275,0.00324693,2261.6,2260.9,12.61380851]
[1773672005480,11.75200418,2262.2,2261.3,12.61380851]
[1773672005883,11.75200418,2263.1,2261.5,12.61380851]
[1773672006075,11.75200418,2263.1,2261.7,12.61380851]
[1773672006485,11.75739296,2263.1,2261.7,12.61905632]
[1773672007184,11.75739296,2263.1,2261.8,20.86880851]
[1773672007383,11.75739296,2263.1,2262.0,12.61380851]
[1773672007579,0.00538878,2263.1,2262.2,12.61380851]
[1773672007778,11.75200418,2263.4,2262.2,12.61380851]
[1773672008185,11.75200418,2263.4,2262.3,8.257]
[1773672008488,11.75200418,2263.4,2262.4,8.258]
[1773672008687,11.75633254,2263.4,2262.5,12.61380851]
[1773672009190,0.00432836,2263.4,2262.5,12.61380851]
[1773672010187,0.00036221,2263.4,2262.5,12.61380851]
[1773672010985,0.00036221,2263.4,2262.7,12.61380851]
[1773672011382,0.00036221,2263.4,2262.9,12.61380851]
[1773672011596,11.75236639,2263.4,2262.6,12.61380851]
[1773672011785,0.00036221,2263.4,2263.0,8.264]
[1773672012190,0.00036221,2263.4,2263.1,12.61380851]
[1773672012488,11.75200418,2264.4,2263.2,20.88080851]
[1773672012684,11.75200418,2264.4,2263.3,12.61380851]
[1773672012880,11.75200418,2264.4,2263.4,8.268]
[1773672013081,11.75200418,2264.4,2263.0,12.61380851]
[1773672013286,11.75200418,2264.4,2263.1,8.27]
[1773672013586,11.75200418,2264.4,2263.1,8.27488723]
[1773672013587,11.75200418,2264.2,2263.1,8.27488723]
[1773672014087,0.00544952,2264.4,2263.2,12.61380851]
[1773672014286,11.7574537,2264.4,2263.2,12.61380851]
[1773672014491,11.7574537,2264.4,2263.3,20.88680851]
[1773672014688,11.7574537,2264.4,2263.4,12.61380851]
[1773672015190,11.7574537,2264.4,2263.6,12.61380851]
[1773672015785,11.7574537,2264.4,2263.7,8.276]
[1773672016385,0.00544952,2264.4,2263.8,12.61380851]
[1773672017188,0.00544952,2264.4,2264.0,12.61380851]
[1773672017384,11.7574537,2264.4,2263.5,12.61380851]
[1773672017787,11.7574537,2264.4,2263.6,8.283]
[1773672018091,11.7574537,2264.4,2263.7,12.61380851]
[1773672018786,11.75200418,2264.9,2263.7,12.61380851]
[1773672019103,11.75200418,2264.9,2263.4,12.61380851]
[1773672019294,11.75200418,2264.9,2263.5,20.90080851]
[1773672019488,11.75200418,2264.9,2263.6,12.61380851]
[1773672019688,11.75729452,2264.9,2263.7,20.90280851]
[1773672020189,11.75729452,2264.9,2263.8,12.61380851]
[1773672020494,11.75729452,2264.9,2264.0,12.61380851]
[1773672020790,11.75729452,2264.9,2264.1,8.292]
[1773672021189,11.75200418,2265.5,2264.3,12.61380851]
[1773672021385,11.75200418,2265.5,2264.4,8.294]
[1773672021591,11.75200418,2265.5,2264.5,12.61380851]
[1773672021795,11.75200418,2265.5,2264.6,20.90980851]
[1773672021988,11.75200418,2265.5,2264.7,8.296]
[1773672022189,0.00387787,2265.5,2264.8,12.61380851]
[1773672023292,12.11909466,2266.2,2265.0,12.21002816]
[1773672024196,12.11909466,2265.8,2264.7,12.21337988]
[1773672024597,12.11909466,2265.8,2263.7,0.22083]
[1773672024598,12.11909466,2265.4,2264.1,12.21002816]
[1773672025093,12.11909466,2265.2,2263.9,12.21002816]
[1773672025695,12.11909466,2265.2,2263.9,12.21325202]
[1773672026397,12.11909466,2265.0,2263.9,0.00322386]
[1773672026600,12.11909466,2264.8,2263.9,0.00322386]
[1773672026992,12.11909466,2264.8,2263.9,12.21325202]
[1773672027388,12.33730024,2265.3,2263.9,12.21325202]
[1773672027592,12.11909466,2265.3,2263.9,12.21325202]
[1773672028299,12.11909466,2265.3,2263.9,12.43406202]
[1773672028493,12.11909466,2265.1,2263.9,12.21325202]
[1773672029291,12.11909466,2265.4,2263.9,12.43407202]
[1773672029600,12.11909466,2265.7,2264.1,12.43082816]
[1773672029800,12.11909466,2266.0,2264.6,12.21002816]
[1773672030001,12.11909466,2266.0,2264.8,12.21002816]
[1773672030400,12.11909466,2266.0,2264.9,8.318]
[1773672030591,12.11909466,2266.0,2264.9,12.21002816]
[1773672030796,12.11909466,2266.0,2265.1,12.21002816]
[1773672030997,0.00331827,2266.2,2265.3,12.21002816]
[1773672031192,12.12241293,2266.2,2265.4,12.21002816]
[1773672031401,12.12241293,2266.2,2265.5,8.32]
[1773672031600,12.11909466,2266.9,2265.8,12.21002816]
[1773672031902,12.11909466,2267.5,2266.0,12.21002816]
[1773672032201,12.11909466,2267.5,2266.1,8.322]
[1773672032398,12.11909466,2267.5,2266.2,12.21002816]
[1773672032603,12.12273231,2267.5,2266.2,12.21002816]
[1773672032798,12.12273231,2267.5,2266.4,12.21002816]
[1773672033396,0.00363765,2267.5,2266.4,12.21002816]
[1773672033597,12.12273231,2267.5,2266.6,12.21002816]
[1773672034004,12.12273231,2267.5,2266.1,12.21002816]
[1773672034207,12.12273231,2267.5,2266.2,8.325]
[1773672034501,12.12273231,2267.5,2266.3,12.21002816]
[1773672034900,12.12273231,2267.5,2266.3,20.53602816]
[1773672035300,12.11909466,2267.3,2266.0,12.21002816]
[1773672035507,12.11909466,2267.1,2266.0,12.21002816]
[1773672035700,12.11909466,2266.7,2266.1,8.19758271]
[1773672035902,12.11909466,2266.7,2265.9,8.327]
[1773672036205,12.11909466,2267.1,2266.0,12.21002816]
[1773672037500,12.11909466,2267.4,2266.0,12.21002816]
[1773672037699,12.11909466,2267.4,2266.1,8.33]
[1773672037900,12.11909466,2267.4,2266.2,12.21002816]
[1773672038297,12.11909466,2267.2,2265.9,12.21002816]
[1773672038502,12.11909466,2267.0,2265.9,8.332]
[1773672038708,12.11909466,2267.0,2265.8,8.332]
[1773672039007,12.11909466,2266.8,2265.8,8.332]
[1773672039206,12.11909466,2266.8,2265.9,12.21002816]
[1773672039700,12.11909466,2267.4,2265.9,12.21002816]
[1773672039905,12.11909466,2267.2,2266.0,8.334]
[1773672040507,12.11909466,2266.6,2265.5,0.00363931]
[1773672040702,12.11909466,2266.4,2265.5,0.00363931]
[1773672041204,12.11909466,2266.4,2265.0,12.21002816]
[1773672041397,12.33970466,2266.1,2264.8,8.337]
[1773672041603,12.33970466,2266.1,2264.8,12.21002816]
[1773672042009,12.11909466,2266.1,2264.8,12.21002816]
[1773672042207,12.11909466,2266.1,2264.9,20.54902816]
[1773672042610,12.11909466,2266.1,2265.0,12.21002816]
[1773672043104,12.11909466,2266.1,2264.8,0.00512194]
[1773672043304,12.11909466,2265.9,2264.8,0.00512194]
[1773672043505,12.11909466,2265.5,2263.8,12.21002816]
[1773672044007,12.11909466,2265.5,2263.9,12.21002816]
[1773672044410,12.11909466,2265.5,2263.9,12.21519611]
[1773672044609,12.11909466,2265.5,2264.1,12.21002816]
[1773672044805,12.11909466,2265.5,2264.0,17.17077572]
[1773672045108,8.11,2265.5,2264.0,12.21002816]
[1773672045311,12.11909466,2265.4,2264.1,8.345]
[1773672045511,12.11909466,2265.4,2264.1,20.55502816]
[1773672046607,12.11909466,2265.4,2264.2,8.348]
[1773672046804,0.22068,2265.3,2264.1,12.21002816]
[1773672047009,12.11909466,2265.2,2264.0,8.349]
[1773672047712,12.11909466,2265.2,2263.9,12.21519611]
[1773672047916,12.11909466,2265.2,2263.9,20.56619611]
[1773672048918,12.11909466,2265.2,2263.9,12.21519611]
[1773672049423,12.11909466,2264.8,2263.9,0.00516795]
[1773672049920,12.11909466,2264.6,2263.5,8.355]
[1773672050522,12.11909466,2264.6,2263.5,8.357]
[1773672050716,12.11909466,2264.6,2263.3,12.21002816]
[1773672050924,12.11909466,2264.6,2263.5,8.357]
[1773672051315,12.11909466,2264.6,2263.3,12.21415593]
[1773672051518,12.11909466,2264.6,2263.4,8.359]
[1773672051719,12.11909466,2264.6,2263.4,20.56902816]
[1773672051921,12.11909466,2264.6,2263.5,12.21002816]
[1773672052520,12.11909466,2264.6,2263.5,20.57002816]
[1773672052922,12.40240267,2264.6,2263.5,20.57002816]
[1773672053419,12.013901,2264.9,2263.6,11.31848637]
[1773672054318,0.28047437,2265.2,2263.8,11.91929636]
[1773672054525,12.26428454,2265.2,2263.9,8.364]
[1773672054819,12.26428454,2265.2,2264.0,11.91929636]
[1773672055221,12.26428454,2265.5,2264.2,11.91929636]
[1773672055426,12.54682747,2265.5,2264.2,11.91929636]
[1773672055826,12.76344712,2265.5,2264.4,11.91929636]
[1773672056120,12.48090419,2265.5,2264.5,8.366]
[1773672056328,12.48090419,2265.5,2264.5,20.28529636]
[1773672057430,12.26428454,2265.3,2264.2,8.368]
[1773672057927,12.26428454,2265.3,2264.1,11.91929636]
[1773672058130,12.26428454,2265.3,2264.1,20.28829636]
[1773672058331,12.26428454,2265.1,2264.1,20.28829636]
[1773672059233,12.26428454,2265.1,2264.2,11.91929636]
[1773672061637,12.26428454,2265.8,2264.8,11.91929636]
[1773672061836,12.26428454,2265.8,2265.0,11.91929636]
[1773672062036,12.26428454,2265.8,2265.0,11.92462967]
[1773672062232,12.26428454,2265.8,2265.0,0.00533331]
[1773672063631,12.48492454,2265.8,2264.4,11.91929636]
[1773672064139,12.70689884,2265.8,2264.4,11.91929636]
[1773672064343,12.26428454,2265.3,2263.8,11.91929636]
[1773672064636,12.26428454,2265.3,2264.0,11.91929636]
[1773672064637,12.26428454,2265.1,2264.0,11.91929636]
[1773672065336,12.26428454,2265.1,2264.0,12.14010636]
[1773672065533,8.143,2265.3,2264.0,12.14010636]
[1773672065733,12.26428454,2265.2,2264.0,11.91929636]
[1773672065936,12.26428454,2265.2,2264.2,11.91929636]
[1773672066130,12.26428454,2265.2,2263.8,0.00510738]
[1773672066332,12.26428454,2264.7,2263.8,0.00510738]
[1773672066533,12.26428454,2264.5,2263.8,11.92440374]
[1773672066934,12.26428454,2264.5,2263.8,0.00510738]
[1773672068235,12.26428454,2264.8,2263.8,11.92440374]
[1773672068539,12.26428454,2265.0,2264.0,11.91929636]
[1773672069440,12.26428454,2265.0,2264.0,20.26829636]
[1773672069941,12.26428454,2265.0,2264.1,11.91929636]
[1773672070838,12.26428454,2265.0,2263.9,11.91929636]
[1773672071342,0.21667116,2265.2,2263.9,12.14010636]
[1773672071539,12.26428454,2265.0,2263.8,0.00510738]
[1773672071836,12.26428454,2265.0,2263.8,11.92440374]
[1773672072141,12.26428454,2265.0,2264.0,11.91929636]
[1773672072947,12.26428454,2265.2,2264.0,11.91929636]
[1773672073241,12.26428454,2265.2,2264.2,11.91929636]
[1773672074041,12.26428454,2265.2,2264.2,20.29029636]
[1773672074541,12.26428454,2265.2,2264.2,20.29229636]
[1773672074741,12.48498454,2265.2,2263.9,20.29329636]
[1773672074942,12.48499454,2265.0,2263.9,11.91929636]
[1773672075645,12.48501454,2264.8,2263.8,0.00510738]
[1773672075940,12.26428454,2264.6,2263.8,11.92440374]
[1773672076145,12.26428454,2265.0,2263.8,11.92440374]
[1773672077442,12.26428454,2265.0,2264.0,11.91929636]
[1773672077642,3.63501853,2265.6,2264.2,11.91929636]
[1773672077643,8.171,2265.5,2264.2,11.91929636]
[1773672077945,12.26428454,2265.2,2264.2,11.91929636]
[1773672078346,12.26428454,2265.0,2263.9,11.91929636]
[1773672078547,12.26428454,2264.8,2263.9,11.91929636]
[1773672078848,12.26428454,2264.8,2263.9,8.387]
[1773672079441,0.22074,2264.7,2263.9,8.387]
[1773672079647,12.26428454,2264.6,2263.9,8.387]
[1773672080240,12.26428454,2264.6,2263.8,0.00510738]
[1773672080843,12.26428454,2264.4,2263.5,11.91929636]
[1773672081743,12.26428454,2264.4,2263.5,0.0055118]
[1773672081949,12.26428454,2264.4,2263.5,11.92480816]
[1773672082146,12.26428454,2264.4,2263.6,20.31629636]
[1773672082342,12.26428454,2264.4,2263.5,0.0055118]
[1773672082542,11.55190852,2264.2,2263.5,8.4035118]
[1773672082750,11.55588658,2264.2,2263.4,8.398]
[1773672083541,11.55190852,2264.6,2263.5,11.40070714]
[1773672084247,11.55190852,2265.3,2264.1,11.40070714]
[1773672084450,11.55190852,2265.3,2264.3,11.40070714]
[1773672084648,0.00523419,2265.3,2264.5,11.40070714]
[1773672085953,11.55714271,2265.3,2264.5,19.80770714]
[1773672086357,9.04954,2265.0,2263.6,11.40070714]
[1773672086651,11.55190852,2264.5,2263.6,11.40070714]
[1773672087449,11.55190852,2264.5,2263.7,8.41]
[1773672087645,11.55190852,2264.5,2263.7,19.81070714]
[1773672088054,11.55190852,2264.5,2263.8,11.40070714]
[1773672088955,11.55190852,2264.5,2263.9,8.415]
[1773672089456,11.55190852,2265.1,2264.0,11.40070714]
[1773672089655,11.55714271,2265.3,2264.0,11.40070714]
[1773672090354,11.55714271,2265.3,2264.1,0.2208]
[1773672090656,0.00523419,2265.3,2264.4,11.40070714]
[1773672090856,0.00523419,2265.3,2264.6,11.40070714]
[1773672091949,11.55190852,2264.8,2263.1,11.40070714]
[1773672092156,11.55190852,2264.3,2263.1,11.40070714]
[1773672092356,11.55190852,2264.1,2263.1,11.40070714]
[1773672092555,11.55190852,2264.0,2262.6,11.40070714]
[1773672093645,11.55190852,2264.0,2261.9,8.84068]
[1773672093646,11.55190852,2263.8,2262.3,11.40070714]
[1773672093953,11.55190852,2263.6,2262.3,11.40070714]
[1773672094151,11.55190852,2263.4,2262.3,11.40070714]
[1773672095153,8.83772,2262.7,2260.7,11.40070714]
[1773672095356,11.55190852,2262.4,2260.9,11.40070714]
[1773672095755,11.55190852,2262.4,2260.9,19.83570714]
[1773672095956,11.55190852,2262.4,2260.9,11.40070714]
[1773672096754,11.83022899,2262.4,2260.9,11.40070714]
[1773672097359,11.55190852,2262.4,2260.9,11.40070714]
[1773672097561,11.55190852,2262.0,2260.4,11.40070714]
[1773672097759,11.55190852,2261.8,2260.4,11.40070714]
[1773672098656,11.55190852,2261.8,2260.6,11.40070714]
[1773672098855,0.0036432,2262.0,2260.8,11.40070714]
[1773672099054,11.55555172,2262.0,2260.8,11.40070714]
[1773672099452,0.0036432,2262.0,2260.8,11.40070714]
[1773672099653,8.227,2262.7,2260.5,8.84616]
[1773672099654,11.55190852,2262.6,2261.0,11.62180714]
[1773672100457,10.67836564,2262.0,2260.5,11.40070714]
[1773672100761,10.67836564,2261.8,2260.5,11.40510827]
[1773672101460,0.00478813,2262.0,2260.5,11.40510827]
[1773672101654,10.57663488,2262.0,2260.5,11.40510827]
[1773672101851,10.57663488,2262.0,2260.7,11.40070714]
[1773672102056,0.00478813,2262.0,2260.7,11.40070714]
[1773672102258,0.00478813,2262.0,2260.9,11.40070714]
[1773672102757,10.65255245,2262.6,2261.1,11.40070714]
[1773672103358,8.84157,2261.7,2260.5,0.00440113]
[1773672103557,8.84157,2261.7,2259.6,11.40070714]
[1773672103558,10.42017983,2261.4,2259.6,11.40070714]
[1773672103959,10.42017983,2261.4,2259.7,8.457]
[1773672104159,10.42017983,2261.4,2259.8,11.40070714]
[1773672104359,10.42017983,2261.4,2259.9,11.40070714]
[1773672104555,10.42017983,2261.4,2260.0,19.85970714]
[1773672104760,10.42017983,2261.4,2260.2,11.40070714]
[1773672104962,0.00313321,2261.7,2260.4,11.40070714]
[1773672105659,0.00313321,2261.7,2260.6,11.40070714]
[1773672106159,10.35858745,2261.6,2260.5,3.80300983]
[1773672106355,5.69959728,2261.4,2259.9,11.40549527]
[1773672106558,5.69959728,2261.2,2259.9,11.40549527]
[1773672108763,5.69959728,2261.2,2259.9,0.00478813]
[1773672108962,5.88455232,2260.6,2259.4,11.40070714]
[1773672109162,5.88455232,2260.4,2259.4,11.40070714]
[1773672109365,5.88455232,2260.4,2259.0,11.40070714]
[1773672110668,5.88455232,2260.4,2259.1,8.474]
[1773672110968,5.88455232,2260.4,2259.2,11.40070714]
[1773672111371,5.88455232,2260.4,2259.2,19.87670714]
[1773672111573,5.61087671,2260.2,2258.7,11.40070714]
[1773672112068,5.61087671,2260.2,2258.8,8.477]
[1773672112270,5.61087671,2260.2,2258.9,11.40070714]
[1773672112668,5.61087671,2260.2,2259.0,10.78163991]
[1773672112876,5.61087671,2260.2,2258.4,10.78163991]
[1773672113074,5.61087671,2260.2,2258.6,10.78163991]
[1773672113978,5.61087671,2260.2,2258.7,0.22133]
[1773672114179,5.48742259,2261.0,2258.9,10.8553783]
[1773672114377,5.48742259,2261.0,2259.0,8.483]
[1773672114575,8.84866,2259.9,2259.0,8.1180178]
[1773672114876,0.0311841,2259.6,2258.3,11.61105114]
[1773672115083,0.0311841,2259.6,2258.0,20.09505114]
[1773672115280,0.22125,2259.5,2258.0,11.61105114]
[1773672115483,0.22125,2259.5,2258.1,11.62164187]
[1773672115683,0.22125,2259.5,2258.2,8.485]
[1773672115879,0.71016661,2259.4,2258.2,8.486]
[1773672116080,0.71016661,2259.4,2258.3,20.1344419]
[1773672116283,0.71016661,2259.4,2256.8,8.86041]
[1773672116284,0.65656654,2259.2,2258.0,8.486]
[1773672116483,0.65656654,2259.2,2258.0,8.487]
[1773672116987,17.09236,2259.5,2257.8,11.6484419]
[1773672116988,0.65656654,2259.0,2257.9,11.6484419]
[1773672117378,0.65656654,2259.0,2256.8,0.22151]
[1773672117682,0.37051912,2256.7,2254.9,11.77414886]
[1773672117882,0.37051912,2256.3,2255.1,12.41864095]
[1773672118387,0.37051912,2256.3,2255.2,8.479]
[1773672118583,0.3360032,2256.6,2255.3,11.7741465]
[1773672118786,0.0034031,2256.7,2255.4,11.7741465]
[1773672118978,0.0034031,2256.7,2255.5,8.485]
[1773672119179,0.0034031,2256.7,2255.1,12.56780814]
[1773672119180,0.01721462,2256.5,2255.1,12.56780814]
[1773672119590,0.0034031,2256.7,2255.1,12.56780814]
[1773672119887,0.0034031,2256.7,2255.3,11.92331605]
[1773672120088,0.0034031,2256.7,2255.5,11.92331605]
[1773672120291,0.0034031,2256.7,2255.7,12.11556429]
[1773672120484,8.85729,2257.7,2255.9,12.11556429]
[1773672120692,0.22148,2257.1,2255.3,12.11556429]
[1773672120888,8.85699,2257.8,2255.6,12.11556429]
[1773672121190,0.31810197,2257.6,2255.8,11.65196284]
[1773672121380,0.49530487,2258.4,2256.3,11.65196284]
[1773672121583,0.49871761,2258.4,2256.5,11.65196284]
[1773672121986,0.49871761,2258.4,2256.7,11.65196284]
[1773672122187,0.49871761,2258.4,2256.7,11.65726496]
[1773672122188,0.00341274,2258.4,2256.7,11.65726496]
[1773672122391,0.00341274,2258.4,2256.9,11.39567995]
[1773672122593,0.00341274,2258.4,2257.1,11.39567995]
[1773672122988,0.00341274,2258.4,2257.3,11.39567995]
[1773672123187,0.00341274,2258.4,2257.5,11.30542965]
[1773672123681,8.85709,2257.8,2256.7,0.00530212]
[1773672123887,1.17672864,2257.7,2256.7,11.31073177]
[1773672124088,1.14455686,2258.0,2256.7,11.31073177]
[1773672124492,1.14455686,2258.0,2256.9,11.0644806]
[1773672124791,0.22970026,2258.4,2256.9,11.0644806]
[1773672124792,1.62986769,2258.4,2256.9,11.0644806]
[1773672124991,0.00341274,2258.4,2257.1,11.0644806]
[1773672125392,0.00341274,2258.4,2257.3,11.03417951]
[1773672125991,0.00341274,2258.4,2256.3,0.22156]
[1773672125992,0.00341274,2258.4,2257.4,19.53717951]
[1773672126184,0.00341274,2258.4,2255.8,14.18293]
[1773672126185,0.2214,2258.0,2256.7,11.03768438]
[1773672126485,0.00341274,2258.4,2256.9,11.03238226]
[1773672126686,0.00341274,2258.4,2257.1,11.03238226]
[1773672127093,0.00341274,2258.4,2257.3,11.03238226]
[1773672127495,0.00341274,2258.4,2257.5,11.09046763]
[1773672127695,0.00341274,2258.4,2256.8,0.22151]
[1773672127696,0.00341274,2258.4,2257.7,11.09046763]
[1773672127992,0.00341274,2258.4,2257.9,11.09046763]
[1773672128190,0.00341274,2258.4,2258.0,19.84201796]
[1773672128392,0.00341274,2258.4,2258.1,11.31501796]
[1773672128589,0.99797444,2259.1,2258.1,11.31501796]
[1773672128791,9.0722,2259.4,2258.1,11.31501796]
[1773672128792,1.21923444,2259.4,2258.1,11.31501796]
[1773672128991,0.22126,2259.4,2258.1,11.31501796]
[1773672129187,0.22132,2258.8,2258.0,11.31291574]
[1773672129388,1.19196394,2258.8,2258.0,11.31291574]
[1773672129592,1.19740713,2258.8,2258.0,11.31291574]
[1773672129792,1.19740713,2258.8,2257.9,8.543]
[1773672129993,1.19740713,2258.8,2257.7,11.31291574]
[1773672130193,0.97608713,2258.8,2257.8,8.547]
[1773672130398,0.97608713,2258.8,2257.9,11.3105344]
[1773672130597,0.94419677,2258.6,2257.6,11.3105344]
[1773672130797,0.00544319,2258.8,2257.7,11.3105344]
[1773672130798,1.16554677,2258.5,2257.7,11.3105344]
[1773672131399,0.22135,2258.5,2257.7,11.3105344]
[1773672131594,0.22135,2258.5,2257.8,8.559]
[1773672131794,1.10728548,2258.5,2257.4,11.3239838]
[1773672131994,1.10728548,2258.5,2257.5,11.3239838]
[1773672132195,8.85614,2258.0,2256.7,11.75661565]
[1773672132390,9.07666,2258.2,2256.7,11.75661565]
[1773672132596,0.22138,2258.2,2256.7,11.75661565]
[1773672133400,0.22138,2258.2,2256.9,11.72893311]
[1773672133594,0.22138,2258.2,2257.0,8.573]
[1773672133791,0.22676319,2258.8,2257.1,11.72893311]
[1773672133992,0.04516335,2260.2,2258.0,11.72621152]
[1773672134192,0.22118,2260.2,2258.2,11.72621152]
[1773672134500,0.22117,2260.4,2258.4,11.78676675]
[1773672134696,9.06807,2260.4,2258.6,11.78676675]
[1773672134998,0.22626273,2260.4,2258.8,11.78676675]
[1773672135398,0.22626273,2260.4,2258.9,5.07104784]
[1773672135599,0.22626273,2260.4,2259.0,11.71132875]
[1773672135800,0.00509273,2260.4,2259.0,11.71132875]
[1773672135991,0.00509273,2260.4,2259.2,11.71132875]
[1773672136198,0.36774306,2261.2,2259.4,11.71132875]
[1773672136396,0.22109,2261.1,2259.4,11.71132875]
[1773672136600,0.58883306,2261.1,2259.6,11.53394702]
[1773672136797,0.58883306,2261.1,2259.8,11.53394702]
[1773672136998,0.58883306,2261.1,2259.7,8.594]
[1773672136999,0.33670779,2261.0,2260.0,11.53394702]
[1773672137195,0.34185593,2261.0,2260.0,11.53394702]
[1773672137600,0.34185593,2261.0,2260.1,8.598]
[1773672137995,0.34185593,2261.0,2260.2,11.20466964]
[1773672138197,0.00514814,2261.0,2260.3,11.3094032]
[1773672139604,0.22111,2260.9,2259.7,11.28346716]
[1773672140003,0.96551342,2260.5,2259.7,11.28346716]
[1773672140503,0.74436342,2260.5,2259.7,11.28346716]
[1773672140703,0.74826955,2260.5,2259.7,11.28661467]
[1773672140897,0.00390613,2260.5,2259.8,11.25928469]
[1773672141301,0.81826421,2261.1,2259.8,11.25928469]
[1773672141500,0.81826421,2261.1,2259.9,8.615]
[1773672141709,0.81826421,2261.1,2260.0,11.23131032]
[1773672141903,0.78731364,2260.6,2259.7,0.00314751]
[1773672142108,0.78731364,2260.4,2259.7,0.00314751]
[1773672142308,0.7930006,2260.4,2259.7,0.00314751]
[1773672142903,0.00568696,2260.4,2259.7,11.2918966]
[1773672143507,0.00568696,2260.4,2259.8,11.27235736]
[1773672144506,0.65201937,2261.0,2259.8,11.27235736]
[1773672144706,0.64887186,2260.2,2259.3,11.26531545]
[1773672145114,0.22119,2260.1,2259.3,11.26531545]
[1773672145407,0.83053169,2260.1,2259.3,11.26531545]
[1773672145613,0.60934169,2260.7,2259.3,11.26531545]
[1773672145911,0.57935923,2260.1,2259.3,0.00413157]
[1773672146410,0.54604423,2259.9,2259.3,0.00413157]
[1773672146616,0.76726423,2259.8,2258.9,11.27130958]
[1773672146801,0.54604423,2259.5,2257.7,11.28796708]
[1773672147007,0.54604423,2259.5,2258.5,11.28796708]
[1773672147207,0.54604423,2259.5,2258.5,19.91896708]
[1773672147513,0.54604423,2259.5,2258.6,11.32021396]
[1773672148311,0.40480713,2259.3,2258.5,11.33189178]
[1773672148709,0.62606713,2259.4,2258.5,11.33189178]
[1773672150107,0.22126,2259.4,2258.5,11.33189178]
[1773672151009,0.35054763,2258.7,2257.1,11.31002488]
[1773672151311,0.35054763,2258.7,2257.4,11.31143565]
[1773672151518,0.34772607,2259.0,2257.4,11.31143565]
[1773672152216,0.31340596,2258.8,2257.6,11.31356218]
[1773672152617,0.31340596,2258.8,2257.8,11.31356218]
[1773672152817,0.31340596,2258.8,2257.9,11.31356218]
[1773672153218,0.25189354,2258.6,2257.5,11.32945596]
[1773672153718,0.22133,2258.7,2257.5,11.32945596]
[1773672153913,0.25189354,2258.9,2257.7,11.32945596]
[1773672154115,0.22642869,2259.0,2257.7,11.32945596]
[1773672154309,0.444933,2259.0,2257.7,11.32945596]
[1773672154512,0.444933,2259.0,2257.8,8.642]
[1773672154713,0.444933,2259.0,2257.9,11.29458067]
[1773672154915,0.00442589,2259.0,2257.9,11.29458067]
[1773672155818,0.00442589,2259.0,2258.1,11.34412873]
[1773672156120,0.00442589,2259.0,2257.8,11.34412873]
[1773672158017,0.00442589,2259.0,2258.0,11.37449147]
[1773672158215,0.22582956,2259.3,2258.0,11.37449147]
[1773672158523,0.22121,2260.0,2258.4,11.3927803]
[1773672158711,0.22121,2260.0,2258.6,11.3927803]
[1773672159212,0.22459542,2260.0,2258.6,11.3927803]
[1773672159913,0.44559103,2260.0,2258.6,11.3927803]
[1773672160423,0.44559103,2260.0,2258.8,11.4560025]
[1773672160620,0.44559103,2260.0,2258.9,11.4560025]
[1773672161328,0.22125,2259.5,2258.3,11.48233592]
[1773672161719,0.22125,2259.5,2258.4,11.48233592]
[1773672162228,0.22125,2259.5,2258.0,11.4585948]
[1773672162229,9.0716,2259.5,2258.0,11.4585948]
[1773672162420,0.2213,2259.0,2258.0,11.4585948]
[1773672164629,0.22000898,2259.5,2258.0,11.4585948]
[1773672164832,8.40325,2259.6,2258.0,11.4585948]
[1773672165224,0.44111205,2259.6,2258.0,11.6799948]
[1773672165725,0.22129,2259.2,2258.0,11.4585948]
[1773672166529,0.22129,2259.2,2258.2,11.51062007]
[1773672166920,6.17049204,2259.6,2258.2,11.51062007]
[1773672167125,0.21986205,2259.6,2258.2,11.51062007]
[1773672167326,0.22125,2259.5,2258.2,11.51062007]
[1773672167525,0.22125,2259.5,2258.4,11.56360109]
[1773672168026,0.22125,2259.5,2258.4,8.654]
[1773672168226,0.22125,2259.5,2258.5,11.56360109]
[1773672169239,6.17494047,2259.8,2257.5,11.53536587]
[1773672169240,0.2213,2259.0,2257.5,11.53536587]
[1773672169442,0.2213,2259.0,2257.7,11.53536587]
[1773672170641,5.96328973,2259.3,2257.7,11.53536587]
[1773672170939,0.22126,2259.4,2257.9,11.53353578]
[1773672171443,0.22126,2259.4,2258.1,11.53314131]
[1773672171643,6.18219559,2259.5,2258.1,11.53314131]
[1773672171938,0.22459542,2260.0,2258.3,11.53314131]
[1773672172134,0.22459542,2260.0,2258.5,11.58637125]
[1773672172332,0.22459542,2260.0,2258.7,11.58637125]
[1773672172739,6.41985946,2260.0,2258.7,11.58637125]
[1773672172934,0.44682972,2260.0,2258.7,11.58637125]
[1773672173336,0.22561972,2260.0,2258.7,11.58637125]
[1773672173745,5.97569811,2260.2,2258.9,11.53878255]
[1773672173942,0.22187305,2260.3,2258.9,11.53878255]
[1773672174237,3.58327309,2260.9,2259.4,11.75351243]
[1773672174439,0.21816591,2260.9,2259.4,11.75351243]
[1773672174640,5.08672217,2261.2,2259.6,10.65012461]
[1773672174940,8.95929504,2262.1,2260.4,10.65012461]
[1773672175241,0.22092,2262.9,2261.0,10.65012461]
[1773672175445,10.96823857,2262.9,2261.2,10.65012461]
[1773672175642,0.28532589,2263.0,2261.2,10.65012461]
[1773672175840,10.74731857,2263.2,2261.4,10.65012461]
[1773672176043,10.75271847,2263.2,2261.4,10.65361994]
[1773672176240,10.75271847,2263.2,2261.6,10.65012461]
[1773672176441,10.75271847,2263.2,2261.8,10.65012461]
[1773672176843,10.96821857,2263.1,2261.8,10.65012461]
[1773672177044,10.96821857,2263.1,2261.9,8.651]
[1773672177341,10.74731857,2263.1,2262.0,10.65012461]